bitfinex-derivatives/quotes_BNBF0:USTF0_20250130
["timestamp","ask_amount","ask_price","bid_price","bid_amount"]
[1738269390492,0.27019009,680.65,679.6,1.41629075]
[1738269391388,0.27019009,680.65,679.6,1.122]
[1738269393293,1.09834209,680.97,679.6,1.122]
[1738269393294,0.27019173,680.64,679.6,1.122]
[1738269393492,1.09834209,680.68,679.6,1.122]
[1738269393493,0.27019173,680.67,679.6,1.122]
[1738269393688,1.09834209,680.68,679.6,1.122]
[1738269393888,0.27019192,680.67,679.6,1.122]
[1738269396996,1.09834209,680.57,679.6,1.122]
[1738269397198,0.27019192,680.56,679.6,1.122]
[1738269398301,1.09834209,680.57,679.6,1.122]
[1738269398600,0.270158,680.56,679.6,1.122]
[1738269399601,1.09834209,680.57,679.6,1.122]
[1738269400007,0.27013665,680.56,679.6,1.122]
[1738269400404,0.27013665,680.55,679.6,1.122]
[1738269400704,0.27013665,680.54,679.6,1.122]
[1738269400999,0.27013665,680.53,679.6,1.122]
[1738269401203,0.27013665,680.58,679.6,1.122]
[1738269401402,0.27013665,680.57,679.6,1.122]
[1738269401597,0.27013665,680.58,679.6,1.122]
[1738269401802,0.27013336,680.57,679.6,1.122]
[1738269402099,0.27013336,680.56,679.6,1.122]
[1738269402302,0.27013336,680.58,679.6,1.122]
[1738269403810,1.09834209,680.52,679.6,1.122]
[1738269404004,0.27013336,680.51,679.6,1.122]
[1738269405001,1.09834209,680.52,679.6,1.122]
[1738269405203,0.27013364,680.51,679.6,1.122]
[1738269407805,1.09834209,680.49,679.6,1.122]
[1738269409007,0.2702373,680.48,679.6,1.122]
[1738269410408,1.09834209,680.49,679.6,1.122]
[1738269410909,1.09834209,680.37,679.6,1.122]
[1738269414411,1.09834209,680.77,679.6,1.122]
[1738269414808,0.27024471,680.76,679.6,1.122]
[1738269417907,0.27024471,680.75,679.6,1.122]
[1738269418111,0.27024471,680.74,679.6,1.122]
[1738269418314,1.09834209,680.62,679.6,1.122]
[1738269418506,0.27024471,680.61,679.6,1.122]
[1738269419312,0.27024471,680.6,679.6,1.122]
[1738269419515,0.27024471,680.59,679.6,1.122]
[1738269419716,0.27024471,680.58,679.6,1.122]
[1738269420012,0.27027847,680.57,679.6,1.122]
[1738269420318,0.27027847,680.56,679.6,1.122]
[1738269420615,0.27027847,680.55,679.6,1.122]
[1738269420818,0.27027847,680.54,679.6,1.122]
[1738269421023,0.27027847,680.53,679.6,1.122]
[1738269421517,0.27027847,680.52,679.6,1.122]
[1738269421816,0.27027847,680.51,679.6,1.122]
[1738269422020,1.09834209,680.33,679.6,1.122]
[1738269422417,0.27027847,680.32,679.6,1.122]
[1738269423219,1.09834209,680.33,679.6,1.122]
[1738269426117,0.27033397,680.32,679.6,1.122]
[1738269426819,0.27033397,680.55,679.6,1.122]
[1738269427020,0.27033397,680.54,679.6,1.122]
[1738269428012,0.29387995,680.55,679.6,1.122]
[1738269428214,0.27039415,680.54,679.6,1.122]
[1738269429821,1.09834209,680.41,679.6,1.122]
[1738269430020,0.27039415,680.4,679.6,1.122]
[1738269431420,1.09834209,680.41,679.6,1.122]
[1738269431622,0.27035411,680.4,679.6,1.122]
[1738269432823,0.27035411,680.39,679.6,1.122]
[1738269433022,0.27035411,680.41,679.6,1.122]
[1738269433224,0.27035411,680.4,679.6,1.122]
[1738269433417,0.27035411,680.39,679.6,1.122]
[1738269433621,0.27035411,680.41,679.6,1.122]
[1738269433822,0.27035411,680.38,679.6,1.122]
[1738269434024,0.27035411,680.37,679.6,1.122]
[1738269434324,0.27035411,680.36,679.6,1.122]
[1738269434522,1.09834209,680.42,679.6,1.122]
[1738269434523,0.27035411,680.41,679.6,1.122]
[1738269434723,0.27041889,680.4,679.6,1.122]
[1738269434923,0.27041889,680.41,679.6,1.122]
[1738269436321,1.09834209,680.47,679.6,1.122]
[1738269436525,0.5643701,680.46,679.6,1.122]
[1738269436723,0.56437442,680.45,679.6,1.122]
[1738269436924,0.27045129,680.44,679.6,1.122]
[1738269438429,0.29393177,680.43,679.6,1.122]
[1738269438728,0.27045129,680.42,679.6,1.122]
[1738269442733,0.56438738,680.42,679.6,1.122]
[1738269443132,0.27045129,680.41,679.6,1.122]
[1738269443338,0.27045129,680.4,679.6,1.122]
[1738269443536,0.27045129,680.39,679.6,1.122]
[1738269443736,0.29393609,680.42,679.6,1.122]
[1738269443737,0.27045129,680.38,679.6,1.122]
[1738269443936,1.09834209,680.32,679.6,1.122]
[1738269444136,0.27045129,680.31,679.6,1.122]
[1738269444743,0.27048988,680.3,679.6,0.362]
[1738269445039,1.09834209,680.32,679.6,0.362]
[1738269446541,0.27050445,680.31,679.6,0.362]
[1738269447040,1.09834209,680.18,679.6,0.362]
[1738269447240,0.27050445,680.17,679.6,0.362]
[1738269449440,1.09834209,680.23,679.6,0.362]
[1738269449642,0.27042541,680.22,679.6,0.362]
[1738269451243,0.29402684,680.21,679.6,0.362]
[1738269451542,0.27042379,680.2,679.6,0.362]
[1738269451737,0.29403549,680.19,679.6,0.362]
[1738269451938,0.27042379,680.18,679.6,0.362]
[1738269452138,0.29404413,680.17,679.6,0.362]
[1738269452334,0.27042379,680.16,679.6,0.362]
[1738269454146,0.29405278,680.15,679.6,0.362]
[1738269454540,0.27042379,680.14,679.6,0.362]
[1738269457241,1.09834209,680.03,679.6,0.362]
[1738269457444,0.27042379,680.02,679.6,0.362]
[1738269460044,1.09834209,679.87,679.6,0.362]
[1738269460240,0.27042379,679.86,679.6,0.362]
[1738269463950,1.36876588,679.86,679.6,0.362]
[1738269464141,0.27042379,679.85,679.6,0.362]
[1738269466148,1.09834209,679.86,679.6,0.362]
[1738269466349,0.27045058,679.85,679.6,0.362]
[1738269466852,0.27045058,679.84,679.6,0.362]
[1738269467150,0.27045058,679.83,679.6,0.362]
[1738269467352,0.27045058,679.86,679.6,0.362]
[1738269467544,0.27045058,679.85,679.6,0.362]
[1738269467745,0.27045058,679.86,679.6,0.362]
[1738269467950,0.27045058,679.85,679.6,0.362]
[1738269468144,0.27045058,679.86,679.6,0.362]
[1738269468350,0.27045058,679.85,679.6,0.362]
[1738269468548,0.27045058,679.84,679.6,0.362]
[1738269468744,0.27045058,679.83,679.6,0.362]
[1738269468949,0.27045058,679.82,679.6,0.362]
[1738269469248,0.27045058,679.81,679.6,0.362]
[1738269469451,1.09834209,679.79,678.47,1.09668608]
[1738269469750,0.27045058,679.78,678.49,0.29477221]
[1738269469948,0.27045058,679.78,678.5,0.25731634]
[1738269470945,1.09834209,679.79,678.51,1.53661606]
[1738269471150,1.09834209,679.79,678.52,0.2572796]
[1738269471751,1.09834209,679.79,678.52,1.2762796]
[1738269471954,1.09834209,679.79,678.52,1.019]
[1738269472450,1.09834209,679.79,678.53,0.55203085]
[1738269472652,1.09834209,679.79,678.53,0.29475483]
[1738269473153,1.09834209,679.74,678.56,1.09668608]
[1738269473350,1.09834209,679.74,678.58,0.29473311]
[1738269476156,2.24244845,680.34,678.58,0.29473311]
[1738269476157,1.09834209,680.03,678.58,0.29473311]
[1738269477357,1.09834209,680.03,678.59,0.25726319]
[1738269477563,0.27041269,680.02,678.59,0.25726319]
[1738269477858,0.2704089,680.01,678.58,0.29473311]
[1738269478056,0.2704089,680.02,678.59,0.25726135]
[1738269478253,0.2704089,680.01,678.59,0.25726135]
[1738269478458,0.2704089,680.0,678.61,0.29472008]
[1738269478657,0.2704089,679.99,678.62,0.25726135]
[1738269478858,1.09834209,680.03,678.62,0.25726135]
[1738269478859,0.2704089,680.02,678.63,0.2947114]
[1738269479156,0.2704089,680.01,678.64,0.25726135]
[1738269479353,0.2704089,680.0,678.65,0.29470271]
[1738269479557,0.2704089,679.99,678.66,0.25726135]
[1738269479859,0.2704089,679.98,678.67,0.29469403]
[1738269480055,0.2704089,679.97,678.68,0.25726135]
[1738269480258,0.2704089,679.96,678.69,0.29468534]
[1738269480556,0.2704089,679.95,678.7,0.25726135]
[1738269480858,0.2704089,680.02,678.71,0.29467666]
[1738269481057,1.09834209,680.03,678.71,0.29467666]
[1738269481058,0.2704089,680.01,678.72,0.25726135]
[1738269481258,0.2704089,680.02,678.73,0.29466798]
[1738269481459,1.09834209,679.84,678.73,0.29466798]
[1738269481759,0.2704089,679.83,678.73,0.29466798]
[1738269482059,0.2704089,679.83,678.66,1.09668608]
[1738269482260,0.2704089,679.83,678.67,0.25729689]
[1738269483358,0.2704089,679.83,678.66,1.09668608]
[1738269483558,1.09834209,679.84,678.66,1.09668608]
[1738269485859,1.09834209,679.74,678.6,1.09668608]
[1738269486658,1.09834209,679.74,678.61,0.25730529]
[1738269486858,1.09834209,679.74,678.6,1.09668608]
[1738269487456,1.09834209,679.74,678.61,0.25730278]
[1738269489560,1.09834209,679.79,678.61,0.25730278]
[1738269489764,1.09834209,679.79,678.59,1.53633905]
[1738269489965,1.09834209,679.79,678.6,0.25730361]
[1738269490867,1.09834209,679.79,678.59,1.53633905]
[1738269491164,1.09834209,679.79,678.6,0.25730436]
[1738269491766,1.09834209,679.78,678.6,0.25730436]
[1738269492459,1.09834209,679.78,678.59,1.53633905]
[1738269493064,0.27048625,679.77,678.59,1.53633905]
[1738269493259,0.27048625,680.33,678.6,0.257344]
[1738269493463,0.27048625,680.32,678.6,0.257344]
[1738269493765,0.27048625,680.31,678.6,0.257344]
[1738269493966,0.27048625,680.3,678.59,1.53633905]
[1738269494364,0.27048625,680.29,678.59,1.53633905]
[1738269494562,0.76820567,680.35,678.59,1.53633905]
[1738269494563,0.27048625,680.28,678.59,1.53633905]
[1738269494758,0.27048625,680.27,678.59,1.53633905]
[1738269494963,0.27048625,680.26,678.59,1.53633905]
[1738269495258,0.27048625,680.25,678.59,1.53633905]
[1738269495562,0.27048625,680.24,678.59,1.53633905]
[1738269495757,0.76820567,680.35,678.59,1.53633905]
[1738269495758,0.27048625,680.23,678.59,1.53633905]
[1738269495962,0.27048625,680.22,678.59,1.53633905]
[1738269496157,0.76820567,680.35,678.59,1.53633905]
[1738269496158,0.27048625,680.21,678.59,1.53633905]
[1738269496365,0.27048625,680.2,678.59,1.53633905]
[1738269496665,0.27048625,680.19,678.59,1.53633905]
[1738269496866,0.27048625,680.18,678.59,1.53633905]
[1738269497067,0.27048625,680.17,678.59,1.53633905]
[1738269497459,0.76820567,680.35,678.59,1.53633905]
[1738269497460,0.27048625,680.16,678.59,1.53633905]
[1738269497765,1.09689498,679.63,678.59,1.53633905]
[1738269497972,0.27051255,679.62,678.59,1.53633905]
[1738269498967,1.09689498,679.63,678.59,2.45333905]
[1738269499667,0.27052538,679.62,678.59,2.45333905]
[1738269499867,1.09689498,679.63,678.59,2.45333905]
[1738269500064,0.27052631,679.62,678.59,2.45333905]
[1738269500264,0.27052631,679.65,678.59,2.45333905]
[1738269501569,1.09689498,679.66,678.59,2.45333905]
[1738269503270,1.09689498,679.7,678.59,2.45333905]
[1738269503865,0.27051385,679.69,678.59,2.45333905]
[1738269504263,1.09689498,679.7,678.59,2.45333905]
[1738269504462,0.27051219,679.69,678.6,0.29472443]
[1738269506366,0.27051219,679.75,678.6,0.29472443]
[1738269507372,0.27051219,679.75,678.61,0.25737257]
[1738269507572,0.27051219,679.75,678.6,0.29472443]
[1738269508769,1.09689498,679.74,678.6,0.29472443]
[1738269509068,0.27051219,679.73,678.61,0.25737691]
[1738269509268,0.27052773,679.72,678.6,0.29472443]
[1738269509473,0.27052773,679.71,678.61,0.25737558]
[1738269509771,0.27052773,679.7,678.61,0.25737558]
[1738269510073,0.27052773,679.69,678.61,0.25737558]
[1738269510271,0.27052773,679.73,678.61,0.25737558]
[1738269510470,0.27052878,679.72,678.6,0.29472443]
[1738269510665,0.27052878,679.73,678.6,0.29472443]
[1738269511067,0.27052283,679.72,678.6,0.29472443]
[1738269511268,0.56525708,680.11,678.6,0.29472443]
[1738269511269,1.09689498,679.62,678.6,0.29472443]
[1738269512267,0.27051352,679.61,678.6,0.29472443]
[1738269512973,0.27051352,679.61,678.61,0.25735649]
[1738269513274,0.27051352,679.61,678.6,0.29472443]
[1738269513475,0.27051352,679.61,678.61,0.25734925]
[1738269513770,0.27051352,679.61,678.6,0.29472443]
[1738269514273,0.27051352,679.6,678.6,0.29472443]
[1738269514473,0.27051352,679.59,678.6,0.29472443]
[1738269514675,1.09689498,679.67,678.6,0.29472443]
[1738269515973,1.09689498,679.67,678.6,1.14372443]
[1738269516974,1.09689498,679.72,678.6,1.14372443]
[1738269517168,0.27049538,679.71,678.6,1.14372443]
[1738269518374,1.09689498,679.72,678.6,1.14372443]
[1738269519075,0.27048985,679.71,678.6,1.14372443]
[1738269519477,1.09689498,679.72,678.6,1.14372443]
[1738269521080,0.56532663,680.26,678.6,1.14372443]
[1738269521081,0.27049121,679.71,678.6,1.14372443]
[1738269521274,0.27049121,679.73,678.6,1.14372443]
[1738269521479,0.27049121,679.72,678.6,1.14372443]
[1738269521680,0.27049121,679.73,678.6,1.14372443]
[1738269521876,0.27049121,679.72,678.6,1.14372443]
[1738269522077,0.27049121,679.73,678.6,1.14372443]
[1738269522277,0.27049121,679.72,678.6,1.14372443]
[1738269522479,0.27049121,679.73,678.6,1.14372443]
[1738269523387,0.27049121,679.73,678.61,0.25732966]
[1738269523585,0.27049121,679.73,678.62,0.29471574]
[1738269523785,1.09689498,679.68,678.62,0.29471574]
[1738269524587,1.09689498,679.68,678.63,0.25732352]
[1738269525184,1.09689498,679.68,678.64,0.25732534]
[1738269525384,1.09689498,679.68,678.65,0.25732534]
[1738269525585,1.09689498,679.68,678.66,0.29469837]
[1738269525888,1.09689498,679.68,678.67,0.25732534]
[1738269526084,1.09689498,679.68,678.67,0.55201937]
[1738269526284,1.09689498,679.68,678.68,0.25732534]
[1738269526984,1.09689498,679.67,678.69,0.25732251]
[1738269527284,1.09689498,679.67,678.67,0.29469403]
[1738269527688,1.09689498,679.67,678.68,0.25732343]
[1738269528088,1.09689498,679.67,678.67,0.29469403]
[1738269528282,0.27047999,679.66,678.68,0.2573322]
[1738269528888,0.27047999,679.66,678.67,0.29469403]
[1738269529088,1.09689498,679.67,678.67,0.29469403]
[1738269530889,1.09689498,679.63,678.67,0.29469403]
[1738269533989,1.09689498,679.72,678.67,0.29469403]
[1738269535187,1.09689498,679.72,678.67,1.27869403]
[1738269537284,1.09689498,679.77,678.67,1.27869403]
[1738269540492,5.26442971,687.75,678.67,1.27869403]
[1738269540493,1.09689498,679.89,678.67,1.27869403]
[1738269540893,1.09689498,679.89,678.68,0.25726595]
[1738269541193,1.09689498,679.89,678.68,0.55195564]
[1738269541389,1.09689498,679.89,678.69,0.25726595]
[1738269541693,1.09689498,679.89,678.68,0.29468969]
[1738269541895,0.27043214,679.88,678.69,0.25728451]
[1738269542193,0.27045856,679.87,678.7,0.25731063]
[1738269542389,1.09689498,679.89,678.69,0.25731063]
[1738269542390,0.27045856,679.88,678.69,0.25731063]
[1738269542797,0.27045856,679.96,678.69,0.25731063]
[1738269542996,0.27045856,679.95,678.69,0.25731063]
[1738269543296,1.09689498,679.97,678.69,0.25731063]
[1738269543297,0.27045856,679.94,678.69,0.25731063]
[1738269543495,0.27045856,679.96,678.69,0.25731063]
[1738269543790,0.27045347,679.95,678.68,0.29468969]
[1738269543996,0.27045347,679.94,678.69,0.25730559]
[1738269544193,0.27045347,679.96,678.7,0.294681]
[1738269544397,1.09689498,679.97,678.7,0.294681]
[1738269544398,0.27045347,679.95,678.71,0.25730559]
[1738269544697,0.27045347,679.94,678.71,0.25730559]
[1738269544893,0.27045347,679.96,678.71,0.25730559]
[1738269545100,1.09689498,679.71,678.71,0.25730559]
[1738269545397,0.27045347,679.7,678.71,0.25730559]
[1738269545597,0.27045347,679.7,678.72,0.29467232]
[1738269545797,0.27045347,679.7,678.73,0.25730559]
[1738269547301,0.27045347,679.7,678.74,0.29466364]
[1738269547502,0.27045347,679.7,678.75,0.25730559]
[1738269548296,1.09689498,679.68,678.75,0.25730559]
[1738269548500,0.27045347,679.67,678.75,0.25730559]
[1738269549301,1.09689498,679.68,678.74,0.29466364]
[1738269550902,0.27049497,679.67,678.74,0.29466364]
[1738269552006,1.09689498,679.64,678.74,0.29466364]
[1738269554401,1.09689498,679.65,678.74,0.29466364]
[1738269555303,1.09689498,679.65,678.74,1.13366364]
[1738269557706,1.09689498,679.66,678.74,1.13366364]
[1738269558300,0.27051257,679.65,678.74,1.13366364]
[1738269559508,0.27051257,679.64,678.74,1.13366364]
[1738269559708,0.27051257,680.13,678.74,1.13366364]
[1738269559908,0.56457832,680.12,678.74,1.13366364]
[1738269560107,0.56458264,680.11,678.74,1.13366364]
[1738269560308,0.56458697,680.1,678.74,1.13366364]
[1738269560611,0.56459129,680.09,678.74,1.13366364]
[1738269560904,0.56459561,680.08,678.74,1.13366364]
[1738269561105,0.56459994,680.07,678.74,1.13366364]
[1738269561310,0.56460426,680.06,678.74,1.13366364]
[1738269561505,0.56460859,680.05,678.74,1.13366364]
[1738269561707,1.0974332,679.53,678.74,1.13366364]
[1738269564608,1.0974332,679.68,678.74,1.13366364]
[1738269564913,0.27053158,679.67,678.74,1.13366364]
[1738269568111,0.27053158,679.71,678.74,1.13366364]
[1738269568309,0.27053158,679.7,678.74,1.13366364]
[1738269568510,0.27053158,679.71,678.74,1.13366364]
[1738269568814,0.27053158,679.7,678.74,1.13366364]
[1738269569015,0.27053158,679.71,678.74,1.13366364]
[1738269569216,0.27053158,679.7,678.74,1.13366364]
[1738269569415,0.27053158,679.69,678.74,1.13366364]
[1738269569614,0.27053158,679.71,678.74,1.13366364]
[1738269569915,0.27053158,679.7,678.74,1.13366364]
[1738269570115,0.27053158,679.71,678.74,1.13366364]
[1738269570316,0.27053158,679.7,678.74,1.13366364]
[1738269570514,0.27053158,679.71,678.74,1.13366364]
[1738269570711,0.27053158,679.7,678.74,1.13366364]
[1738269571017,0.27053037,679.69,678.74,1.13366364]
[1738269573920,1.0974332,679.68,678.74,1.13366364]
[1738269574411,0.27054392,679.67,678.74,1.13366364]
[1738269575614,0.27054392,679.67,678.74,0.839]
[1738269577619,1.0974332,679.54,678.74,0.839]
[1738269577818,0.27054392,679.53,678.74,0.839]
[1738269579317,1.0974332,679.54,678.74,0.839]
[1738269579523,0.27055894,679.53,678.74,0.839]
[1738269579726,1.0974332,679.51,678.74,0.839]
[1738269579922,0.27055894,679.5,678.74,0.839]
[1738269581125,0.27056469,679.49,678.74,0.839]
[1738269581324,0.27056469,679.5,678.74,0.839]
[1738269583727,0.27056469,679.49,678.74,0.839]
[1738269583928,1.0974332,679.57,678.74,0.839]
[1738269583929,0.27056469,679.56,678.74,0.839]
[1738269584228,0.27056469,679.55,678.74,0.839]
[1738269584528,0.27056469,679.54,678.74,0.839]
[1738269584723,0.27056469,679.53,678.74,0.839]
[1738269584922,0.27056469,679.52,678.74,0.839]
[1738269585125,0.27056469,679.56,678.74,0.839]
[1738269585426,0.27056469,679.55,678.74,0.839]
[1738269585628,0.27056469,679.56,678.74,0.839]
[1738269585828,0.27056469,679.55,678.74,0.839]
[1738269586023,1.0974332,679.57,678.74,0.839]
[1738269586329,1.0974332,679.53,678.74,0.839]
[1738269586623,0.270595,679.52,678.74,0.839]
[1738269587726,1.0974332,679.53,678.74,0.839]
[1738269588828,1.0974332,679.54,678.74,0.839]
[1738269592031,1.0974332,679.7,678.74,0.839]
[1738269594234,0.27059989,679.69,678.74,0.839]
[1738269594428,1.0974332,679.7,678.74,0.839]
[1738269594632,0.27059899,679.69,678.74,0.839]
[1738269595937,1.0974332,679.7,678.74,0.839]
[1738269596329,0.27060481,679.69,678.74,0.839]
[1738269597542,1.0974332,679.7,678.74,0.839]
[1738269598038,0.27059808,679.69,678.74,0.839]
[1738269599539,0.27059449,679.68,678.74,0.839]
[1738269599732,0.27059449,679.69,678.74,0.839]
[1738269603042,1.36802769,679.69,678.74,0.839]
[1738269603345,0.27059449,679.68,678.74,0.839]
[1738269603849,1.0974332,679.69,678.74,0.839]
[1738269604149,0.27065677,679.68,678.74,0.839]
[1738269604645,1.807929,679.68,678.74,0.839]
[1738269604847,0.27065677,679.67,678.74,0.839]
[1738269605751,1.53727223,679.68,678.74,0.839]
[1738269606051,0.27070259,679.67,678.74,0.839]
[1738269607052,1.0974332,679.41,678.74,0.839]
[1738269607245,0.27070259,679.4,678.74,0.839]
[1738269610153,1.0974332,679.41,678.74,0.839]
[1738269610353,0.27067534,679.4,678.74,0.839]
[1738269610850,0.27068115,679.39,678.74,0.839]
[1738269611054,0.27068115,679.4,678.74,0.839]
[1738269611250,0.27068115,679.39,678.74,0.839]
[1738269611455,0.27068115,679.38,678.74,0.839]
[1738269611655,0.27068115,679.44,678.74,0.839]
[1738269611956,0.27068115,679.43,678.74,0.839]
[1738269612153,0.27068115,679.44,678.74,0.839]
[1738269612354,1.0974332,679.45,678.74,0.839]
[1738269612554,0.27067196,679.44,678.74,0.839]
[1738269614556,1.0974332,679.38,678.74,0.839]
[1738269614756,0.27067196,679.37,678.74,0.839]
[1738269617456,0.27067196,679.36,678.74,0.839]
[1738269617857,0.27067196,679.35,678.74,0.839]
[1738269618057,0.27067196,679.4,678.74,0.839]
[1738269618261,0.27067196,679.39,678.74,0.839]
[1738269618475,1.0974332,679.41,678.74,0.839]
[1738269618476,0.27067196,679.4,678.74,0.839]
[1738269618756,0.27067196,679.39,678.74,0.839]
[1738269618957,0.27067196,679.4,678.74,0.839]
[1738269619161,0.27069255,679.39,678.74,0.839]
[1738269619361,0.27069255,679.4,678.74,0.839]
[1738269619556,0.27069255,679.39,678.74,0.839]
[1738269619762,0.27069255,679.4,678.74,0.839]
[1738269619961,0.27069255,679.39,678.74,0.839]
[1738269620162,0.27069255,679.38,678.74,0.839]
[1738269620464,0.27069255,679.37,678.74,0.839]
[1738269620762,0.27069255,679.4,678.74,0.839]
[1738269621062,1.0974332,679.39,678.74,0.839]
[1738269621262,0.27069255,679.38,678.74,0.839]
[1738269624358,1.36812575,679.38,678.74,0.839]
[1738269624562,0.27069255,679.37,678.74,0.839]
[1738269627565,1.0974332,679.3,678.74,0.839]
[1738269631670,1.0974332,679.6,678.74,0.839]
[1738269632367,0.27061277,679.59,678.74,0.839]
[1738269634869,1.0974332,679.54,678.74,0.839]
[1738269635068,0.27061277,679.53,678.74,0.839]
[1738269637570,1.0974332,679.54,678.74,0.839]
[1738269637769,1.36804563,679.53,678.74,0.839]
[1738269637968,0.27061243,679.52,678.74,0.839]
[1738269640970,1.36804563,679.52,678.74,0.839]
[1738269641169,0.27061243,679.51,678.74,0.839]
[1738269645269,1.36804563,679.51,678.74,0.839]
[1738269645470,1.0974332,679.51,678.74,0.839]
[1738269646570,0.27063605,679.5,678.74,0.839]
[1738269647169,1.0974332,679.51,678.74,0.839]
[1738269648065,0.27063155,679.5,678.74,0.839]
[1738269648271,1.0974332,679.51,678.74,0.839]
[1738269648572,0.27063615,679.5,678.74,0.839]
[1738269648872,1.0974332,679.41,678.74,0.839]
[1738269649072,0.27063615,679.4,678.74,0.839]
[1738269651977,1.0974332,679.38,678.74,0.839]
[1738269652176,0.27063615,679.37,678.74,0.839]
[1738269654773,1.36806935,679.37,678.74,0.839]
[1738269655079,0.27063615,679.36,678.74,0.839]
[1738269657180,0.27063615,679.35,678.74,0.839]
[1738269657478,0.27063615,679.34,678.74,0.839]
[1738269657676,0.27063615,679.37,678.74,0.839]
[1738269659675,1.0974332,679.35,678.74,0.839]
[1738269659878,0.27063615,679.34,678.74,0.839]
[1738269662682,1.0974332,679.21,678.74,0.839]
[1738269663583,0.2706629,679.2,678.74,0.839]
[1738269664085,1.0974332,679.21,678.74,0.839]
[1738269664383,0.27067383,679.2,678.74,0.839]
[1738269665186,1.0974332,679.21,678.74,0.839]
[1738269665483,0.2706756,679.19,678.74,0.839]
[1738269665679,0.27067663,679.18,678.74,0.839]
[1738269666682,0.2706756,679.19,678.74,0.839]
[1738269788879,1.0974332,679.47,678.74,0.839]
[1738269789280,0.27065868,679.46,678.74,0.839]
[1738269791984,1.0974332,679.38,678.74,0.839]
[1738269792181,0.27065868,679.37,678.74,0.839]
[1738269795477,0.27065868,679.36,678.74,0.839]
[1738269795682,0.27065868,679.42,678.74,0.839]
[1738269795882,0.27065868,679.41,678.74,0.839]
[1738269796082,0.27065868,679.42,678.74,0.839]
[1738269796385,0.27065868,679.41,678.74,0.839]
[1738269796584,0.27065868,679.42,678.74,0.839]
[1738269798890,1.0974332,679.4,678.74,0.839]
[1738269799188,0.27065594,679.39,678.74,0.839]
[1738269801591,1.0974332,679.28,678.74,0.839]
[1738269802390,0.27065429,679.27,678.74,0.839]
[1738269803187,0.27065168,679.26,678.74,0.839]
[1738269803392,0.27065168,679.27,678.74,0.839]
[1738269803692,0.27065168,679.26,678.74,0.839]
[1738269803892,0.27065168,679.27,678.74,0.839]
[1738269804192,1.36808488,679.27,678.74,0.839]
[1738269804492,0.27065168,679.26,678.74,0.839]
[1738269807794,1.0974332,679.22,678.74,0.839]
[1738269808092,0.27065168,679.21,678.74,0.839]
[1738269810887,0.27066215,679.2,678.74,0.839]
[1738269811090,0.27066215,679.19,678.74,0.839]
[1738269811290,0.27066215,679.21,678.74,0.839]
[1738269811491,1.0974332,679.22,678.74,0.839]
[1738269811689,1.0974332,679.15,678.74,0.839]
[1738269814398,1.0974332,679.11,678.74,0.839]
[1738269821504,1.0974332,679.04,678.74,0.839]
[1738269826008,1.0974332,678.98,678.74,0.839]
[1738269830513,1.0974332,679.05,678.74,0.839]
[1738269834408,1.0974332,679.11,678.74,0.839]
[1738269836715,0.27070098,679.1,678.74,0.839]
[1738269837417,1.0974332,679.08,678.74,0.839]
[1738269837818,0.27071432,679.07,678.74,0.839]
[1738269839116,0.27071686,679.06,678.74,0.839]
[1738269839423,0.27071686,679.05,678.74,0.839]
[1738269839622,0.27071686,679.07,678.74,0.839]
[1738269839824,0.27071686,679.06,678.74,0.839]
[1738269840123,0.27071686,679.05,678.74,0.839]
[1738269840324,0.27071686,679.07,678.74,0.839]
[1738269840522,1.0974332,679.0,678.74,0.839]
[1738269845031,1.0974332,679.01,678.74,0.839]
[1738269848733,1.0974332,679.12,678.74,0.839]
[1738269852836,1.0974332,679.14,678.74,0.839]
[1738269855336,1.0974332,679.22,678.74,0.839]
[1738269859640,0.2706819,679.21,678.74,0.839]
[1738269860045,0.2706819,679.2,678.74,0.839]
[1738269860238,0.2706819,679.49,678.74,0.839]
[1738269861740,0.27072686,679.48,678.74,0.839]
[1738269861945,0.27072686,679.47,678.74,0.839]
[1738269862146,0.27072686,679.46,678.74,0.839]
[1738269862348,0.27072686,679.45,678.74,0.839]
[1738269862548,1.0974332,679.15,678.74,0.839]
[1738269868445,0.27077292,679.14,678.74,0.839]
[1738269868853,1.0974332,679.17,678.74,0.839]